Cogmind - Beta 13 @@@ ROGUE MODE // 2024.06.13 @ 23:08:52 Player: Jammed Result: Destroyed by G-47 Trooper with Particle Gun Performance ------------- Evolutions (2) 1000 Regions Visited (9) 1800 Robots Destroyed (171) 855 Value Destroyed (4610) 4610 Prototype IDs (5) 100 Alien Tech Used (0) 0 Bonus (888) 888 TOTAL SCORE: 9253 Bonus ------- High Alert Combat Kills 365 Follower Combat Kills 339 Entered Garrisons 200 Friendly Fire -16 Cogmind --------- Core Integrity 0/550 Matter 155/300 Energy 80/265 System Corruption 5% Temperature Cool (9) Movement Treading (320) Ox2 Location -8/Materials Parts ------- > --- POWER (1) -------- Improved Ion Engine > --- PROPULSION (3) --- Light Treads Light Treads > --- UTILITY (5) ------ Cooling System Huge Storage Unit > --- WEAPON (2) ------- (None) > --- INVENTORY (25) --- Cooled Ion Engine Light Treads Light Treads Light Treads Light Treads Improved Treads Improved Treads Cooling System Compact Battery (200) Seismic Detector Improved Medium Armor Plating Improved Medium Armor Plating Improved Medium Armor Plating Improved Powered Armor Hacking Suite Hacking Suite Trap Extractor (0/4) Variable Charge Gun Heavy Assault Rifle Improved Assault Rifle Improved Datajack Heavy Hammer Peak State ------------ > --- POWER ------------ Heavy Ion Engine > --- PROPULSION ------- Light Treads Light Treads Compact Wheel > --- UTILITY ---------- Cooling System Huge Storage Unit Seismic Detector Light Armor Plating Hardlight Generator > --- WEAPON ----------- Heavy Particle Cannon Ion Cannon > --- INVENTORY -------- Improved Ion Engine Cooled Ion Engine Light Treads Light Treads Light Treads Light Treads Light Treads Improved Treads Improved Treads Cooling System Light Armor Plating Improved Medium Armor Plating Improved Medium Armor Plating Improved Medium Armor Plating Improved Powered Armor Hacking Suite Trap Extractor Trap Extractor Variable Charge Gun Heavy Assault Rifle Heavy Assault Rifle Improved Assault Rifle Rocket Launcher Datajack Heavy Hammer [Rating: 26] Favorites ----------- Power Heavy Ion Engine Engine Heavy Ion Engine Propulsion Light Treads Treads Light Treads Leg Aluminum Leg Wheel Wheel Utility Cooling System Device Cooling System Storage Huge Storage Unit Protection Light Armor Plating Weapon Improved Assault Rifle Energy Gun Small Laser Energy Cannon Ion Cannon Ballistic Gun Improved Assault Rifle Ballistic Cannon Light Cannon Launcher Rocket Launcher Build | -11 -10 -10 -9 -9 -9 -8 -8 -8 -8 ------- Run | Yrd Mat Min Mat Min Exi Min Mat Gar Mat Slots Evolved 4 | . . . 2 . . . 2 . . Power . | . . . . . . . . . . Propulsion 1 | . . . . . . . 1 . . Utility 3 | . . . 2 . . . 1 . . Weapon . | . . . . . . . . . . Parts Attached 99 | 2 6 2 20 7 . 3 30 12 17 Power 9 | . . 1 3 1 . . 3 . 1 Engine 9 | . . 1 3 1 . . 3 . 1 Core . | . . . . . . . . . . Reactor . | . . . . . . . . . . Propulsion 29 | . 2 . 5 1 . 1 11 5 4 Treads 22 | . 1 . 4 1 . . 9 4 3 Leg . | . . . . . . . . . . Wheel 7 | . 1 . 1 . . 1 2 1 1 Hover . | . . . . . . . . . . Flight . | . . . . . . . . . . Utility 30 | 1 3 . 7 4 . 1 7 4 3 Device 13 | 1 1 . 3 1 . . 3 3 1 Storage 3 | . 2 . 1 . . . . . . Processor . | . . . . . . . . . . Hackware . | . . . . . . . . . . Protection 14 | . . . 3 3 . 1 4 1 2 Artifact . | . . . . . . . . . . Weapon 31 | 1 1 1 5 1 . 1 9 3 9 Energy Gun 5 | 1 . 1 1 . . . . . 2 Energy Cannon 9 | . . . . . . . 4 2 3 Ballistic Gun 8 | . 1 . 4 1 . 1 1 . . Ballistic Cannon 2 | . . . . . . . 2 . . Launcher 7 | . . . . . . . 2 1 4 Special Weapon . | . . . . . . . . . . Impact Weapon . | . . . . . . . . . . Slashing Weapon . | . . . . . . . . . . Piercing Weapon . | . . . . . . . . . . Special Melee Weapon . | . . . . . . . . . . Unidentified Prototypes 5 | . . . 2 . . . 2 . 1 Parts Lost 40 | . 1 1 2 5 . 3 12 5 11 Power 4 | . . 1 . 1 . . 1 . 1 Propulsion 9 | . . . 1 1 . 1 3 1 2 Utility 19 | . 1 . 1 2 . 1 6 3 5 Weapon 8 | . . . . 1 . 1 2 1 3 Highest Loss Streak 9 | . 1 1 1 3 . 3 3 3 9 To Critical Strikes . | . . . . . . . . . . Average Slot Usage (%) 95 | . 92 99 97 99 100 99 91 97 93 Engine 10 | . 14 13 10 10 11 11 8 9 8 Treads 15 | . 1 14 11 21 22 13 17 18 18 Leg 2 | . 25 . . . . . . . . Wheel 7 | . 1 14 11 . . 8 8 8 8 Device 19 | . 6 14 21 21 22 22 19 24 18 Storage 10 | . 14 14 11 11 11 11 9 9 9 Protection 8 | . . . 9 11 11 10 8 9 13 Energy Gun 2 | . 14 14 4 . . . . . . Energy Cannon 6 | . . . . . . . 10 17 14 Ballistic Gun 11 | . 14 14 17 22 22 21 6 . . Naked Turns . | . . . . . . . . . . Heaviest Build 113 | 13 89 29 100 100 100 104 113 113 113 Greatest Support 40 | 20 20 10 10 40 40 40 40 40 16 Greatest Overweight (x) 10 | . 8 2 9 9 2 10 10 7 7 Average Overweight (x) 5 | . . 2 5 2 2 8 8 6 6 Largest Inventory Capacity 25 | 8 25 15 25 25 25 25 25 25 25 Average Capacity 22 | 8 8 15 21 25 25 25 25 25 25 Most Carried 25 | 6 8 10 23 23 20 20 25 25 25 Average Carried 18 | 5 7 9 17 19 20 18 21 21 24 Final Capacity 25 | 8 15 15 25 25 25 25 25 25 25 Final Carried 25 | 5 7 10 23 20 20 19 21 25 22 Class Distribution -------------------- 67% | Scavenger-Mutant 32% | Mutant Dominant Class ---------------- Mutant | -10/Materials Mutant | -10/Mines Scavenger-Mutant | -9/Materials Scavenger-Mutant | -9/Mines Scavenger-Mutant | -9/Exiles Mutant | -8/Mines Scavenger-Mutant | -8/Materials Scavenger-Mutant | -8/Garrison Scavenger-Mutant | -8/Materials Resources | -11 -10 -10 -9 -9 -9 -8 -8 -8 -8 ----------- Run | Yrd Mat Min Mat Min Exi Min Mat Gar Mat Matter Collected 2389 | 230 210 53 566 217 . 101 712 188 112 Remotely . | . . . . . . . . . . Salvage Created 5893 | 51 512 198 1528 258 . 223 1539 844 740 Parts 370 | 6 34 13 112 10 . 26 80 43 46 Haulers Intercepted 11 | . 2 . 6 . . . 3 . . Recyclers Shooed 4 | . . 1 2 . . . 1 . . Parts Field Recycled . | . . . . . . . . . . Retrieved Matter . | . . . . . . . . . . Parts Self-Destructed . | . . . . . . . . . . Prevented . | . . . . . . . . . . Kills | -11 -10 -10 -9 -9 -9 -8 -8 -8 -8 ------- Run | Yrd Mat Min Mat Min Exi Min Mat Gar Mat Combat Hostiles Destroyed 119 | . 8 5 25 10 . 4 26 25 16 Guns 66 | . 8 5 25 10 . 4 13 . 1 Cannons 37 | . . . . . . . 9 20 8 AOE 15 | . . . . . . . 4 5 6 Classes Destroyed 18 | 1 7 1 3 2 . . . 2 2 Worker 5 | . 1 . . . . . 3 . 1 Builder 4 | . . . 1 . . . . . 3 Tunneler 11 | 2 1 . 1 1 . 4 1 . 1 Hauler 11 | . 2 . 6 . . . 3 . . Recycler 6 | . . 1 1 . . 1 1 . 2 Mechanic 2 | . 1 . 1 . . . . . . Operator 2 | . 1 . . . . . 1 . . Watcher 14 | . 3 . 4 . . . 5 . 2 Swarmer 33 | . 3 3 3 3 . 4 4 10 3 Grunt 54 | . 5 2 14 3 . . 16 7 7 Brawler 1 | . . . . . . . . . 1 Duelist 3 | . . . 2 . . . 1 . . Protector 1 | . . . . . . . . . 1 Sentry 20 | . . . 6 . . . 5 6 3 Demolisher 1 | . . . . 1 . . . . . Specialist 1 | . . . . . . . . 1 . Hunter 2 | . . . . . . . . 1 1 Assembled 3 | . . . . 3 . . . . . Best Kill Streak 9 | 1 3 3 5 3 . 5 6 8 9 Combat Bots Only 8 | . 3 3 4 3 . 4 4 8 5 Max Kills in Single Turn 4 | 1 1 1 2 2 . 1 4 1 2 Gunslinging 1 | . . . 1 1 . . . . . Exploded 4 | . . . . . . . 4 1 2 Melee . | . . . . . . . . . . Uniques/NPCs Destroyed . | . . . . . . . . . . Combat | -11 -10 -10 -9 -9 -9 -8 -8 -8 -8 -------- Run | Yrd Mat Min Mat Min Exi Min Mat Gar Mat Hostile Shots Fired 647 | . 38 15 71 51 . 30 159 174 109 Missed 175 | . 11 4 19 10 . 11 44 55 21 Damage Taken 5668 | . 370 121 673 462 . 148 1697 983 1214 Core 704 | . 73 . 34 33 . 9 285 71 199 Absorbed by Shields 852 | . . . . . . . 328 284 240 Regen/Repaired (Parts) 69 | . . . 45 . . . . . 24 Core Remaining (%) 83 | 100 . 70 . . . 81 . . . Volleys Fired 434 | 10 55 12 90 24 . 16 104 70 53 Largest 2 | 2 2 2 2 2 . 2 2 2 2 Hottest 225 | 60 60 60 88 46 . 46 120 135 225 Shots Fired 819 | 20 106 24 180 48 . 31 205 113 92 Gun 520 | 20 106 24 180 48 . 31 110 . 1 Cannon 277 | . . . . . . . 93 105 79 Launcher 22 | . . . . . . . 2 8 12 Special . | . . . . . . . . . . Kinetic 424 | 10 55 12 133 48 . 31 135 . . Thermal 369 | 6 51 12 47 . . . 68 105 80 Explosive 22 | . . . . . . . 2 8 12 Electromagnetic 4 | 4 . . . . . . . . . Robot Hit Streak 33 | 7 23 12 20 10 . 4 33 7 12 Robot Miss Streak 7 | 2 7 2 6 3 . 2 3 3 3 Penetration Max . | . . . . . . . . . . Secondary Targets 10 | . 2 2 3 3 . . . . . Max Gunslinging Chain 1 | . 1 1 1 1 . . . . . Shots Hit Robots 545 | 12 71 18 116 33 . 17 165 58 55 Core Hits 270 | 4 30 9 58 17 . 9 69 30 44 Critical Kills 1 | . . . . . . . 1 . . Critical Parts Destroyed 2 | . . . 1 . . . 1 . . Critical Strikes 3 | . . . 1 . . . 2 . . Meltdown 1 | . . . . . . . 1 . . Destroy 2 | . . . 1 . . . 1 . . Melee Attacks . | . . . . . . . . . . Impact . | . . . . . . . . . . Slashing . | . . . . . . . . . . Piercing . | . . . . . . . . . . Sneak Attacks . | . . . . . . . . . . Combat Hostiles . | . . . . . . . . . . Follow-up Attacks . | . . . . . . . . . . Damage Inflicted 11585 | 144 850 226 1831 540 . 254 3297 1861 2582 Guns 5296 | 144 850 226 1831 540 . 254 1399 . 52 Cannons 4480 | . . . . . . . 1695 1357 1428 Explosions 1809 | . . . . . . . 203 504 1102 Melee . | . . . . . . . . . . Ramming . | . . . . . . . . . . Kinetic 4437 | 61 444 107 1329 540 . 254 1702 . . Thermal 5312 | 56 406 119 502 . . . 1392 1357 1480 Explosive 1809 | . . . . . . . 203 504 1102 Electromagnetic 27 | 27 . . . . . . . . . Impact . | . . . . . . . . . . Slashing . | . . . . . . . . . . Piercing . | . . . . . . . . . . Highest Corruption 5 | . . . . . . . . . 5 Average Corruption 5 | . . . . . . . . . 5 Corruption Purged . | . . . . . . . . . . Corruption Blocked . | . . . . . . . . . . Effects 1 | . . . . . . . . . 1 Message Errors 1 | . . . . . . . . . 1 Overload Shots 1 | . . . . . . . . . 1 Overflow Damage 138 | . . . . . . . 40 81 17 Projectiles 83 | . . . . . . . 37 33 13 Explosions 55 | . . . . . . . 3 48 4 Melee . | . . . . . . . . . . Knockbacks 9 | . . . . . . . 9 . . Impact . | . . . . . . . . . . Kinetic 9 | . . . . . . . 9 . . Secondary . | . . . . . . . . . . Self-Inflicted Damage 131 | . . . . . . . 17 52 62 Shots 4 | . . . . . . . 1 1 2 Rammed . | . . . . . . . . . . Targets Rammed . | . . . . . . . . . . Kicked . | . . . . . . . . . . Crushed . | . . . . . . . . . . Highest Temperature 428 | 40 111 27 30 4 . . 80 240 428 Average Temperature 52 | 18 39 15 11 4 . . 16 64 89 Received Heat Transfer 2178 | . 147 51 237 205 . . 754 276 508 Effects 1 | . . . . . . . . 1 . Energy Bleed 1 | . . . . . . . . 1 . Siege Activations . | . . . . . . . . . . Robots Corrupted . | . . . . . . . . . . Combat Hostiles . | . . . . . . . . . . Parts Fried . | . . . . . . . . . . Impact Corruptions . | . . . . . . . . . . Robots Melted 2 | . . . . . . . 1 . 1 Combat Hostiles 1 | . . . . . . . . . 1 Parts Melted 17 | . . . 2 . . . 4 8 3 Heat Transferred 8780 | 125 925 250 1184 . . . 2220 1936 2140 Parts Sabotaged . | . . . . . . . . . . Parts Stolen . | . . . . . . . . . . Parts Stripped . | . . . . . . . . . . Power Chain Reactions . | . . . . . . . . . . Alert | -11 -10 -10 -9 -9 -9 -8 -8 -8 -8 ------- Run | Yrd Mat Min Mat Min Exi Min Mat Gar Mat Peak Influence 863 | 10 147 128 507 244 . 145 418 863 758 Initial 420 | . 6 13 49 179 . . 3 42 420 Average 205 | 4 55 97 288 64 . 43 83 524 554 Maximum Alert Level 3 | . . . 2 1 . . 2 3 3 Low Security (%) 61 | 100 100 100 19 81 . 100 88 19 . Level 1 19 | . . . 64 18 . . 8 11 . Level 2 15 | . . . 16 . . . 2 37 94 Level 3 4 | . . . . . . . . 31 5 Level 4 . | . . . . . . . . . . Level 5 . | . . . . . . . . . . High Security . | . . . . . . . . . . Max Security . | . . . . . . . . . . Squads Dispatched 14 | . 2 . 5 . . . 2 . 5 Investigation 2 | . . . 2 . . . . . . Extermination . | . . . . . . . . . . Reinforcement 9 | . 2 . 3 . . . 1 . 3 Assault 2 | . . . . . . . . . 2 Garrison 1 | . . . . . . . 1 . . Intercept . | . . . . . . . . . . Searches Triggered . | . . . . . . . . . . Construction Impeded . | . . . . . . . . . . Haulers Reinforced . | . . . . . . . . . . Active Scanning Responses . | . . . . . . . . . . Cargo Convoy Interrupts . | . . . . . . . . . . Stealth | -11 -10 -10 -9 -9 -9 -8 -8 -8 -8 --------- Run | Yrd Mat Min Mat Min Exi Min Mat Gar Mat Distress Signals 12 | . 1 . 4 . . . 4 . 3 Communications Jammed . | . . . . . . . . . . Distress Signals . | . . . . . . . . . . Times Spotted 196 | . 22 4 47 10 . 6 37 33 37 Peak Tracking Total 8 | . 3 2 5 3 . 4 8 5 8 Tactical Retreats 9 | . 1 . 2 . . 1 2 1 2 Traps | -11 -10 -10 -9 -9 -9 -8 -8 -8 -8 ------- Run | Yrd Mat Min Mat Min Exi Min Mat Gar Mat Traps Triggered 5 | . 1 . 2 . . . . 2 . Indirectly . | . . . . . . . . . . Trap Hack Attempts . | . . . . . . . . . . Triggered . | . . . . . . . . . . Disarmed 3 | . . . 3 . . . . . . Reprogrammed . | . . . . . . . . . . Reused . | . . . . . . . . . . Traps Extracted . | . . . . . . . . . . Installed . | . . . . . . . . . . Triggered . | . . . . . . . . . . Machines | -11 -10 -10 -9 -9 -9 -8 -8 -8 -8 ---------- Run | Yrd Mat Min Mat Min Exi Min Mat Gar Mat Machines Disabled 7 | . . . . 1 . 1 1 1 3 Max in Single Turn 1 | . . . . 1 . 1 1 1 1 Garrison Access 1 | . . . . . . . . . 1 Machines Repaired . | . . . . . . . . . . Machines Dismantled . | . . . . . . . . . . Machines Sabotaged . | . . . . . . . . . . Overloaded Fab Kills . | . . . . . . . . . . Hacking | -11 -10 -10 -9 -9 -9 -8 -8 -8 -8 --------- Run | Yrd Mat Min Mat Min Exi Min Mat Gar Mat Machines Accessed 23 | . 5 . 8 . 1 . 5 2 2 Terminals 19 | . 5 . 7 . . . 4 2 1 Fabricators . | . . . . . . . . . . Repair Stations 2 | . . . 1 . . . . . 1 Recycling Units . | . . . . . . . . . . Scanalyzers . | . . . . . . . . . . Garrison Access 1 | . . . . . . . 1 . . Total Hacks 65 | . 18 . 21 . 1 . 15 5 5 Successful 37 | . 7 . 15 . 1 . 8 2 4 Failed 28 | . 11 . 6 . . . 7 3 1 Catastrophic . | . . . . . . . . . . Database Lockouts . | . . . . . . . . . . Manual 38 | . 15 . 15 . . . 8 . . Terminals 57 | . 18 . 18 . . . 14 5 2 Fabricators . | . . . . . . . . . . Repair Stations 6 | . . . 3 . . . . . 3 Recycling Units . | . . . . . . . . . . Scanalyzers . | . . . . . . . . . . Garrison Access 1 | . . . . . . . 1 . . Terminal Hacks 20 | . 4 . 6 . 1 . 5 2 2 Record 1 | . . . . . 1 . . . . Part Schematic 1 | . . . 1 . . . . . . Robot Analysis 4 | . 3 . 1 . . . . . . Open Door 1 | . . . . . . . . 1 . Terminal Index 1 | . 1 . . . . . . . . Alert Level 3 | . . . . . . . 2 . 1 Unreport Threat 3 | . . . . . . . 2 . 1 Locate Traps 2 | . . . 1 . . . 1 . . Disarm Traps 2 | . . . 2 . . . . . . Hauler Manifests 1 | . . . 1 . . . . . . Garrison Registry 1 | . . . . . . . . 1 . Fabricator Hacks . | . . . . . . . . . . Repair Station Hacks 4 | . . . 2 . . . . . 2 Scan Component 2 | . . . 1 . . . . . 1 Repair 2 | . . . 1 . . . . . 1 Recycling Unit Hacks . | . . . . . . . . . . Scanalyzer . | . . . . . . . . . . Garrison Access Hacks 1 | . . . . . . . 1 . . Unlock Access 1 | . . . . . . . 1 . . Unauthorized Hacks 12 | . 3 . 7 . . . 2 . . Terminals 12 | . 3 . 7 . . . 2 . . Assimilate 5 | . 1 . 3 . . . 1 . . Botnet 5 | . 1 . 3 . . . 1 . . Operators 2 | . 1 . 1 . . . . . . Fabricators . | . . . . . . . . . . Repair Stations . | . . . . . . . . . . Recycling Units . | . . . . . . . . . . Scanalyzers . | . . . . . . . . . . Garrison Access . | . . . . . . . . . . Data Cores Recovered . | . . . . . . . . . . Used . | . . . . . . . . . . Hacking Detections 19 | . 5 . 6 . . . 4 2 2 Full Trace Events 2 | . . . 1 . . . . 1 . Feedback Events . | . . . . . . . . . . Feedback Blocked . | . . . . . . . . . . Robot Schematics Acquired . | . . . . . . . . . . Robots Built . | . . . . . . . . . . Authchips . | . . . . . . . . . . Time . | . . . . . . . . . . Total Robot Build Rating . | . . . . . . . . . . Part Schematics Acquired 1 | . . . 1 . . . . . . Parts Built . | . . . . . . . . . . Authchips . | . . . . . . . . . . Time . | . . . . . . . . . . Total Part Build Rating . | . . . . . . . . . . Parts Repaired 2 | . . . 1 . . . . . 1 Time 70 | . . . 32 . . . . . 38 Parts Recycled . | . . . . . . . . . . Recycled Matter . | . . . . . . . . . . Retrieved Matter . | . . . . . . . . . . Retrieved Components . | . . . . . . . . . . Parts Scanalyzed . | . . . . . . . . . . Part Schematics Acquired . | . . . . . . . . . . Parts Damaged . | . . . . . . . . . . Bothacking | -11 -10 -10 -9 -9 -9 -8 -8 -8 -8 ------------ Run | Yrd Mat Min Mat Min Exi Min Mat Gar Mat Used RIF Installer . | . . . . . . . . . . Robots Hacked . | . . . . . . . . . . Non-combat . | . . . . . . . . . . Combat . | . . . . . . . . . . Robot Hacks Applied . | . . . . . . . . . . Relay Couplers Released 3 | . . . . . . . . . 3 Machine Destruction 3 | . . . . . . . . . 3 Fabnet Peak Effective % . | . . . . . . . . . . Robots Rewired 2 | . . . . . . . . 2 . Allies Hacked 1 | . . . . . . . . 1 . Hacks Repelled . | . . . . . . . . . . Allies | -11 -10 -10 -9 -9 -9 -8 -8 -8 -8 -------- Run | Yrd Mat Min Mat Min Exi Min Mat Gar Mat Total Allies 8 | . . 3 . 2 . . 1 2 . Largest Group 3 | . . 3 3 2 2 . 1 2 1 Highest-Rated Group 62 | . . 40 40 41 41 . 10 62 31 Highest-Rated Ally 31 | . . 16 16 31 31 . 10 31 31 Total Orders 25 | . . . . . . . 4 19 2 STAY 13 | . . . . . . . 2 10 1 FOLLOW 12 | . . . . . . . 2 9 1 Ally Attacks 68 | . . . 33 . . . . 23 12 Total Damage 1003 | . . . 406 . . . . 390 207 Kills 14 | . . . 9 . . . . 3 2 Allies Corrupted . | . . . . . . . . . . Allies Melted . | . . . . . . . . . . Intel | -11 -10 -10 -9 -9 -9 -8 -8 -8 -8 ------- Run | Yrd Mat Min Mat Min Exi Min Mat Gar Mat Robot Analysis Total 4 | . 3 . 1 . . . . . . Derelict Logs Recovered 3 | . . 2 . 1 . . . . . Drone Launches . | . . . . . . . . . . Drone Recoveries . | . . . . . . . . . . Exploration | -11 -10 -10 -9 -9 -9 -8 -8 -8 -8 ------------- Run | Yrd Mat Min Mat Min Exi Min Mat Gar Mat Turns Passed 13640 | 76 1252 384 2559 2039 404 740 3546 1760 880 Spaces Moved 4707 | 37 740 274 908 435 127 258 948 689 291 Core . | . . . . . . . . . . Treads 608 | . . . . 433 127 43 4 1 . Legs 669 | 37 632 . . . . . . . . Wheels 3430 | . 108 274 908 2 . 215 944 688 291 Hover . | . . . . . . . . . . Flight . | . . . . . . . . . . Fastest Speed 110 | 120 110 110 110 215 320 230 190 190 190 Average Speed 194 | 120 119 110 168 319 320 245 213 196 196 Slowest Speed 320 | 120 200 110 215 320 320 320 320 320 205 Overloaded Moves . | . . . . . . . . . . Propulsion Burnouts . | . . . . . . . . . . Robots Hopped . | . . . . . . . . . . Cave-ins Triggered . | . . . . . . . . . . Exploration Rate (%) 55 | 3 93 55 75 94 47 40 51 68 32 Regions Visited 9 Branch Regions 4 Pre-discovered Areas 2 | . . . . 1 1 . . . . Known Exits Taken 1 | . . . . . . . 1 . . Unknown Exits Taken 7 | 1 1 1 1 1 1 1 . . . Scrap Searched 3 | . . 1 . 1 . 1 . . . Spaces Dug 3 | . . . . . . . . 2 1 Terrain Destroyed 114 | . . . . . . . 20 16 78 Melee . | . . . . . . . . . . Projectile 12 | . . . . . . . 2 . 10 AOE 102 | . . . . . . . 18 16 68 Terrain Rammed . | . . . . . . . . . . Walls Destroyed . | . . . . . . . . . . Machines Disabled . | . . . . . . . . . . Actions | -11 -10 -10 -9 -9 -9 -8 -8 -8 -8 --------- Run | Yrd Mat Min Mat Min Exi Min Mat Gar Mat Total 8404 | 50 1006 331 1761 1037 126 336 2267 984 506 Wait 3018 | 1 194 42 704 568 . 58 1151 169 131 Move 4696 | 36 739 273 907 434 126 257 947 686 291 Hop . | . . . . . . . . . . Pick Up 68 | . 6 2 20 3 . 2 19 11 5 Fast Attach 24 | 1 2 1 10 . . . 6 . 4 Attach 37 | . 2 . 1 5 . 3 15 6 5 Detach 3 | . . . . . . . 2 . 1 Swap 38 | 1 2 1 9 2 . . 9 6 8 Drop 55 | 1 6 . 20 1 . . 14 5 8 Fire 434 | 10 55 12 90 24 . 16 104 70 53 Melee . | . . . . . . . . . . Ram . | . . . . . . . . . . Kick . | . . . . . . . . . . Crush . | . . . . . . . . . . Escape Stasis 4 | . . . . . . . . 4 . Rewire 27 | . . . . . . . . 27 . Trap . | . . . . . . . . . . Miscellaneous . | . . . . . . . . . . Route ------- -11/Scrapyard -10/Materials (discovered 5 exits: *Mat x3 / [*Min x2]) -10/Mines -9/Materials (discovered 3 exits: *Mat x2 / [*Min]) -9/Mines (discovered 3 exits: *Mat x2 / *Exi) -9/Exiles -8/Mines -8/Materials (discovered 4 exits: [*Fac x2] / [*Sto] / Gar) -8/Garrison (discovered 3 exits: *Mat x3) -8/Materials (discovered 1 exit: [*Sto]) History --------- Turn | Location | Event 15 | -11/Scrapyard | Discovered new exit (range 3) 77 | -11/Scrapyard | Entered Materials 123 | -10/Materials | Discovered new exit (range 15) 228 | -10/Materials | Discovered new exit (range 13) 312 | -10/Materials | Build established: Mutant 639 | -10/Materials | Discovered new exit (range 10) 708 | -10/Materials | Discovered new exit (range 16) 858 | -10/Materials | Discovered new exit (range 16) 1329 | -10/Materials | Entered Mines 1373 | -10/Mines | Received a Rocket Launcher from a helpful Derelict 1453 | -10/Mines | Learned Materials terminal intel 1658 | -10/Mines | Learned Materials security intel 1670 | -10/Mines | Discovered new exit (range 11) 1685 | -10/Mines | Assisted by bots powering up and referring to "LRC-V3" 1713 | -10/Mines | Entered Materials 1713 | -9/Materials | Accompanied by 3 allies 1713 | -9/Materials | Evolved 2 slots: Utility x2 1715 | -9/Materials | Loaded intel: 12 terminal locations 1953 | -9/Materials | Discovered new exit (range 15) 2465 | -9/Materials | Discovered new exit (range 4) 2733 | -9/Materials | Build established: Scavenger-Mutant 3141 | -9/Materials | Build established: Mutant 3527 | -9/Materials | Discovered new exit (range 10) 3827 | -9/Materials | Build established: Scavenger-Mutant 4198 | -9/Materials | Repaired Cooling System 4272 | -9/Materials | Entered Mines 4273 | -9/Mines | Assembled infested the area 5211 | -9/Mines | Discovered new exit (range 6) 5226 | -9/Mines | Lost 3 parts (1p1u1w) 5286 | -9/Mines | Discovered new exit (range 6) 6223 | -9/Mines | Learned location of Storage (-8) 6287 | -9/Mines | Deemed a non-threat by the Exiles lab entrance 6287 | -9/Mines | Discovered new exit (range 5) 6311 | -9/Mines | Entered Exiles 6311 | -9/Exiles | Accompanied by 2 allies 6341 | -9/Exiles | Led the pair of lost Derelicts to a safe place 6391 | -9/Exiles | Met 8R-AWN 6446 | -9/Exiles | Met EX-HEX 6574 | -9/Exiles | Met EX-DEC 6590 | -9/Exiles | Learned location of Zion (-7) 6686 | -9/Exiles | Discovered new exit (range 10) 6715 | -9/Exiles | Entered Mines 6921 | -8/Mines | Lost 3 parts (1n1u1w) 7180 | -8/Mines | Build established: Mutant 7395 | -8/Mines | Discovered new exit (range 11) 7455 | -8/Mines | Entered Materials 7455 | -8/Materials | Evolved 2 slots: Propulsion x1, Utility x1 8008 | -8/Materials | Discovered new exit (range 6) 8278 | -8/Materials | Lost 3 parts (1n2u) 8525 | -8/Materials | Discovered new exit (range 10) 8758 | -8/Materials | Build established: Scavenger-Mutant 8961 | -8/Materials | Discovered new exit (range 9) 9917 | -8/Materials | Garrison activated, responded to threat 9940 | -8/Materials | Core integrity fell below 50% 9976 | -8/Materials | Lost 3 parts (1p1u1w) 10214 | -8/Materials | Identified exit to Garrison 11001 | -8/Materials | Entered Garrison 11001 | -8/Garrison | Accompanied by 1 ally 11093 | -8/Garrison | Triggered checkpoint 11307 | -8/Garrison | Triggered checkpoint 11522 | -8/Garrison | Triggered checkpoint 11535 | -8/Garrison | Triggered checkpoint 11572 | -8/Garrison | Destroyed 8 combat bots 11572 | -8/Garrison | Lost 3 parts (1n2u) 11685 | -8/Garrison | Discovered new exit (range 10) 11701 | -8/Garrison | Triggered checkpoint 11821 | -8/Garrison | Discovered new exit (range 48) 11821 | -8/Garrison | Discovered new exit (range 14) 11821 | -8/Garrison | Discovered new exit (range 72) 12284 | -8/Garrison | Found Imp. Powered Armor 12355 | -8/Garrison | Attempted to access garrison exit controls, blocked by remote lockdown 12624 | -8/Garrison | Attempted to access garrison exit controls, blocked by remote lockdown 12761 | -8/Garrison | Entered Materials 12761 | -8/Materials | Accompanied by 1 ally 12950 | -8/Materials | Discovered new exit (range 5) 13240 | -8/Materials | Repaired Hardlight Generator 13561 | -8/Materials | First assault squad dispatched 13596 | -8/Materials | Core integrity fell below 20% 13641 | -8/Materials | Destroyed by G-47 Trooper with Particle Gun Last Messages --------------- 13628_ U-05 Engineer lays Concrete. 13628_ R-06 Scavenger collects Com. Wheel. 13629_ U-05 Engineer lays Concrete. 13631_ HG EMA3TC1RX:SW YU=X 13631_ U-05 Engineer lays Concrete. 13631_ R-06 Scavenger collects Com. Wheel. 13632_ U-05 Engineer lays Concrete. 13633_ W-25 Informer sends out distress signal. 13633_ U-05 Engineer lays Concrete. 13633_ Hardlight Generator destroyed. 13635_ U-05 Engineer lays Concrete. 13635_ R-06 Scavenger collects Lgt. Ion Engine. 13636_ U-05 Engineer lays Concrete. 13638_ R-06 Scavenger collects Carbon-fiber Leg. 13638_ R-06 Scavenger collects Sml. Storage Unit. 13638_ Com. Wheel destroyed. 13639_ The unstable cave ceiling collapses. 13639_ U-05 Engineer lays Concrete. 13640_ U-05 Engineer builds a Wall. 13640_ U-05 Engineer lays Concrete. Map ----- +----------------------------------------------------+ | = """#???????????????????????????????????????????? | | #????? ????????????????????????????????????? | | ###### ??????????????????????????????????? | | ??????????????????????????????????? | | ??????????????????????????????????? | | "??????????????????????????????????? | | ???????????????????????????????????? | | ???????????????????????????????????? | | ????????????????????????????????????? | | ###### !?????? ???????????????????????????? | | #????#? ????? #?? ???????????????????????? | | #?????????????# #?? ???????????????????????? | | #?????????????# ###+##+##??????????????????? | | #???????##?? # ????????????????? | | #??????? #" # ?????????????????? | | # ????? #" " "T????????????????? | | # """ T ?????????????????? | | # """ u ??????????????????? | | + #" r ???????????????????? | | # """ # [ ?????????????????????? | | # """ # #?????????????????????? | | #?? """ # ##????????????????????? | | #???? #??# r ! #####????????????????? | | #????##+###??# g [%= #????????????????? | | ###### ######%!i= g +????????????????? | | %% % % %%[w l@ """ #????????????????? | | !%%###### ######[ # g% """ #????????????????? | | =##???######???### # """ #????????????????? | | ##??????????????## ## # #????????????????? | | #####????????????????##?# # #????????????????? | | ????????????????????????# #?#####????????????????? | | ????????????????????????h ??????????????????????? | | ???????????????????????? ??????????????????????? | | ???????????????????????? ??????????????????????? | | ???????????????????????? ??????????????????????? | | ???????????????????????? ??????????????????????? | | ????????????????????????###??????????????????????? | | ?????????????????????????????????????????????????? | | ?????????????????????????????????????????????????? | | ?????????????????????????????????????????????????? | | ?????????????????????????????????????????????????? | | ?????????????????????????????????????????????????? | | ?????????????????????????????????????????????????? | | ?????????????????????????????????????????????????? | | ?????????????????????????????????????????????????? | | ?????????????????????????????????????????????????? | | ?????????????????????????????????????????????????? | | ?????????????????????????????????????????????????? | | ?????????????????????????????????????????????????? | | ?????????????????????????????????????????????????? | +----------------------------------------------------+ Best States ------------- Heat Dissipation 53 Energy Generation 14 Energy Capacity 280 Matter Stores 300 Matter Capacity 300 Sight Range 16 Robot Scan Range 15 Terrain Scan Density 10 Armor Coverage 300 Evasion (%) 55 Recoil Reduction 2 Item Schematics ----------------- Shield Generator | -9/Materials | Hacked Robot Schematics ------------------ None Fabricated ------------ Nothing Alien Tech Used ----------------- None Achievements -------------- None Challenges ------------ None Game ------ Seed SignalSystemPick Manual? 0 Play Time 01:10:50 Cumulative 151.7 hours Start 2024.06.13 @ 21:49:01 End 2024.06.13 @ 23:08:52 Sessions 3 Manual Loads 0 Difficulty Rogue Special Mode None Game No. 96 Rogue 96 Adventurer 0 Explorer 0 Win Type - Total 2 Types 1/0/0/1/0/0/0/0/0 Lore% 67 Gallery% 58 Achievement% 53 Wizard Run 0 Options --------- Layout 0 ASCII 0 Keyboard 0 Movement Mouse Keybinds 0 Fullscreen 1 Font 18/SmallcapsGlow Map View 76x50 Zoom Use 0% Tactical HUD 1 Map Filters NONE Filters NONE Steam 1 RUN: dabe16c3-2b82-414e-baf4-1a61fd6e4b87